fUSD/lending_fUSD_20260417
["ID","MTS","AMOUNT","RATE_DAILY","PERIOD"]
[420658771,1776438639723,-250.0,8.147e-05,2]
[420658772,1776438639732,-500.0,8.147e-05,2]
[420658773,1776438639741,-418.0,8.147e-05,3]
[420658774,1776438639751,-155.0,8.147e-05,3]
[420658775,1776438639761,-468594.69617285,8.147e-05,2]
[420658776,1776438639778,-645.55505471,8.147e-05,2]
[420658777,1776438639790,-36865.71987015,8.147e-05,2]
[420658781,1776438639827,-1555.26,8.147e-05,2]
[420658895,1776438640935,-683457.61271057,8.147e-05,2]
[420658898,1776438640956,-968.12794408,8.147e-05,2]
[420658901,1776438640976,-230773.97337414,8.147e-05,2]
[420658903,1776438640988,-3325.9035376,8.147e-05,2]
[420658905,1776438641000,-911.93117245,8.147e-05,2]
[420658908,1776438641014,-1788.61824676,8.147e-05,2]
[420658910,1776438641025,-1611.39725291,8.147e-05,2]
[420658912,1776438641035,-1021.54216912,8.147e-05,2]
[420658924,1776438641139,-11694.9,8.147e-05,2]
[420658933,1776438641225,-968.41427426,8.147e-05,2]
[420658936,1776438641247,-693.27386168,8.147e-05,2]
[420659162,1776438643407,-365877.6727009,8.147e-05,2]
[420659165,1776438643417,-5988.16,8.147e-05,2]
[420659168,1776438643426,-9999.99,8.147e-05,2]
[420659171,1776438643436,-299.99,8.147e-05,2]
[420659173,1776438643445,-999.99,8.147e-05,2]
[420659175,1776438643455,-150.99,8.147e-05,2]
[420659177,1776438643464,-235.93802367,8.206e-05,2]
[420659179,1776438643473,-500.0,8.219e-05,2]
[420659181,1776438643483,-500.0,8.219e-05,2]
[420659183,1776438643493,-500.0,8.219e-05,2]
[420659185,1776438643502,-500.0,8.219e-05,2]
[420659187,1776438643511,-276.99931658,8.219e-05,2]
[420659189,1776438643520,-195.55,8.219e-05,2]
[420659191,1776438643530,-200.0,8.219e-05,2]
[420659193,1776438643540,-200.0,8.219e-05,2]
[420659195,1776438643549,-2000.0,8.219e-05,2]
[420659197,1776438643559,-200.0,8.219e-05,2]
[420659199,1776438643569,-200.0,8.219e-05,2]
[420659201,1776438643578,-200.0,8.219e-05,2]
[420659203,1776438643588,-200.0,8.219e-05,2]
[420659205,1776438643597,-199.9485,8.219e-05,2]
[420659207,1776438643606,-500.0,8.219e-05,2]
[420659209,1776438643615,-150.0,8.253e-05,2]
[420659211,1776438643624,-1000.0,8.384e-05,2]
[420659213,1776438643634,-189.17417349,8.39e-05,2]
[420659215,1776438643643,-167.55,8.396e-05,2]
[420659217,1776438643652,-195.48,8.428e-05,2]
[420659219,1776438643661,-209.44,8.461e-05,2]
[420659220,1776438643671,-1000.0,8.471e-05,2]
[420659222,1776438643680,-1000.0,8.499e-05,2]
[420659224,1776438643690,-1000.0,8.516e-05,2]
[420659227,1776438643701,-251.32,8.526e-05,2]
[420659229,1776438643711,-1000.0,8.526e-05,2]
[420659231,1776438643720,-992.41464342,8.541e-05,2]
[420659233,1776438643729,-150.0,8.553e-05,2]
[420659235,1776438643739,-293.21,8.591e-05,2]
[420659237,1776438643748,-1000.0,8.597e-05,2]
[420659239,1776438643758,-452.52,8.656e-05,2]
[420659241,1776438643767,-276.44,8.656e-05,2]
[420659243,1776438643777,-5702.53319384,8.665e-05,2]
[420659245,1776438643787,-195.55,8.676e-05,2]
[420659247,1776438643796,-1000.0,8.69e-05,2]
[420659249,1776438643805,-590742.31214537,8.7e-05,2]
[420659251,1776438643814,-150.0,8.741e-05,2]
[420659253,1776438643824,-1000.0,8.791e-05,2]
[420659254,1776438643833,-154.08578314,8.802e-05,2]
[420659256,1776438643843,-1000.0,8.808e-05,2]
[420659258,1776438643852,-150.0,8.819e-05,2]
[420659260,1776438643861,-1384.97862075,8.82e-05,2]
[420659262,1776438643871,-234093.82703218,8.82e-05,2]
[420659264,1776438643880,-250.0,8.851e-05,2]
[420659266,1776438643889,-1000.0,8.851e-05,2]
[420659268,1776438643899,-1680.0,8.851e-05,2]
[420659270,1776438643908,-418.0,8.876e-05,3]
[420659272,1776438643919,-609.46220819,8.879e-05,2]
[420659274,1776438643928,-174.25,8.888e-05,2]
[420659277,1776438643938,-3508.8644411,8.888e-05,2]
[420659279,1776438643948,-253845.3080452,8.888e-05,2]
[420659281,1776438643957,-290.6571589,8.888e-05,2]
[420659283,1776438643967,-10248.9220067,8.888e-05,2]
[420659285,1776438643977,-1000.0,8.892e-05,2]
[420659287,1776438643986,-151.0,8.897e-05,2]
[420659289,1776438643997,-688.46,8.899e-05,7]
[420659291,1776438644006,-177.3,8.9e-05,2]
[420659293,1776438644015,-177.3,8.9e-05,2]
[420659295,1776438644025,-177.3,8.9e-05,2]
[420659297,1776438644034,-177.3,8.9e-05,2]
[420659299,1776438644044,-177.3,8.9e-05,2]
[420659301,1776438644055,-177.3,8.9e-05,2]
[420659303,1776438644080,-2100.0,8.9e-05,3]
[420659305,1776438644101,-500.0,8.904e-05,2]
[420659307,1776438644118,-155.0,8.917e-05,3]
[420659310,1776438644127,-150.0,8.925e-05,2]
[420659313,1776438644137,-150.0,8.928e-05,2]
[420659315,1776438644146,-150.0,8.955e-05,2]
[420659317,1776438644155,-166.66,8.959e-05,2]
[420659319,1776438644164,-200.0,8.959e-05,2]
[420659321,1776438644173,-200.0,8.959e-05,2]
[420659323,1776438644183,-200.0,8.959e-05,2]
[420659325,1776438644191,-200.0,8.959e-05,2]
[420659327,1776438644201,-200.0,8.959e-05,2]
[420659329,1776438644210,-200.0,8.959e-05,2]
[420659331,1776438644220,-200.0,8.959e-05,2]
[420659333,1776438644229,-1000.0,8.96e-05,2]
[420659335,1776438644238,-5000.0,8.962e-05,2]
[420659337,1776438644247,-151.0,8.997e-05,2]
[420659339,1776438644257,-158.205,8.999e-05,2]
[420659341,1776438644266,-300.00000089,9e-05,2]
[420659343,1776438644275,-2600.0,9e-05,3]
[420659345,1776438644285,-14273.8683919,9.001e-05,2]
[420659347,1776438644294,-150.1566667,9.001e-05,2]
[420659349,1776438644303,-578.20924308,9.049e-05,2]
[420659351,1776438644312,-200.0,9.049e-05,2]
[420659353,1776438644321,-500.0,9.049e-05,2]
[420659355,1776438644330,-1280.88388878,9.049e-05,2]
[420659357,1776438644340,-1258.84636414,9.049e-05,2]
[420659359,1776438644349,-646.65982734,9.049e-05,2]
[420659361,1776438644358,-500.0,9.049e-05,2]
[420659363,1776438644368,-500.0,9.049e-05,2]
[420659365,1776438644377,-500.0,9.049e-05,2]
[420659367,1776438644386,-500.0,9.049e-05,2]
[420659369,1776438644395,-500.0,9.049e-05,2]
[420659371,1776438644404,-500.0,9.049e-05,2]
[420659373,1776438644413,-174.61919141,9.049e-05,2]
[420659375,1776438644422,-743.50770149,9.049e-05,2]
[420659377,1776438644431,-500.0,9.049e-05,2]
[420659379,1776438644440,-500.0,9.049e-05,2]
[420659381,1776438644450,-187.78006525,9.049e-05,2]
[420659383,1776438644459,-500.0,9.049e-05,2]
[420659385,1776438644468,-500.0,9.049e-05,2]
[420659387,1776438644478,-592.50770149,9.049e-05,2]
[420659389,1776438644487,-270.65733243,9.049e-05,2]
[420659391,1776438644497,-151.0,9.049e-05,2]
[420659393,1776438644507,-151.0,9.097e-05,2]
[420659395,1776438644516,-151.0,9.097e-05,2]
[420659397,1776438644526,-847406.40778411,9.1e-05,2]
[420659400,1776438644547,-134423.65412289,9.1e-05,2]
[420659402,1776438644556,-5526.26700346,9.1e-05,2]
[420659404,1776438644566,-151.0,9.1e-05,2]
[420659406,1776438644575,-151.0,9.1e-05,2]
[420659408,1776438644585,-151.0,9.1e-05,2]
[420659410,1776438644594,-401.276731,9.1e-05,2]
[420659412,1776438644604,-401.276731,9.1e-05,2]
[420659414,1776438644613,-401.276731,9.1e-05,2]
[420659416,1776438644623,-401.276731,9.1e-05,2]
[420659418,1776438644632,-151.0,9.1e-05,2]
[420659420,1776438644641,-151.0,9.1e-05,2]
[420659423,1776438644654,-151.0,9.1e-05,2]
[420659425,1776438644663,-306.1179,9.1e-05,2]
[420659427,1776438644672,-306.1179,9.1e-05,2]
[420659429,1776438644681,-306.1179,9.1e-05,2]
[420659431,1776438644690,-306.1179,9.1e-05,2]
[420659433,1776438644700,-5101.840582,9.1e-05,2]
[420659435,1776438644709,-5101.840582,9.1e-05,2]
[420659437,1776438644718,-5101.840582,9.1e-05,2]
[420659439,1776438644727,-5101.840582,9.1e-05,2]
[420659441,1776438644737,-151.0,9.1e-05,2]
[420659443,1776438644746,-151.0,9.1e-05,2]
[420659445,1776438644755,-151.0,9.1e-05,2]
[420659447,1776438644765,-586.74719605,9.104e-05,2]
[420659449,1776438644774,-151.0,9.104e-05,2]
[420659451,1776438644782,-150.0,9.12e-05,2]
[420659452,1776438644794,-195.55,9.132e-05,2]
[420659455,1776438644804,-151.0,9.159e-05,2]
[420659457,1776438644813,-151.0,9.214e-05,2]
[420659459,1776438644822,-166.66,9.236e-05,2]
[420659461,1776438644831,-160.0,9.244e-05,2]
[420659496,1776438645156,-2000.0,9.247e-05,2]
[420659498,1776438645165,-151.0,9.269e-05,2]
[420659500,1776438645175,-208.62,9.319e-05,2]
[420659502,1776438645184,-150.0,9.343e-05,2]
[420659504,1776438645193,-214.888183,9.344e-05,2]
[420659506,1776438645203,-1600.0,9.365e-05,2]
[420659508,1776438645212,-150.0,9.42e-05,2]
[420659510,1776438645222,-2109.0,9.457e-05,5]
[420659512,1776438645231,-174.2374,9.5e-05,2]
[420659514,1776438645241,-174.2374,9.5e-05,2]
[420659516,1776438645250,-150.0,9.508e-05,2]
[420659518,1776438645259,-166.66,9.513e-05,2]
[420659520,1776438645268,-150.0,9.522e-05,2]
[420659522,1776438645278,-500.0,9.557e-05,2]
[420659524,1776438645287,-151.0,9.589e-05,2]
[420659527,1776438645297,-195.55,9.589e-05,2]
[420659529,1776438645306,-1328.27659266,9.597e-05,2]
[420659531,1776438645315,-202.86353754,9.597e-05,2]
[420659532,1776438645325,-181.08010149,9.597e-05,2]
[420659535,1776438645334,-625.10110559,9.597e-05,2]
[420659537,1776438645344,-194.72792766,9.597e-05,2]
[420659538,1776438645353,-418.0,9.605e-05,3]
[420659540,1776438645362,-155.0,9.686e-05,3]
[420659542,1776438645371,-150.0,9.72e-05,2]
[420659545,1776438645381,-1221.0,9.736e-05,2]
[420659547,1776438645391,-166.66,9.791e-05,2]
[420659549,1776438645400,-11276.465664,9.8e-05,2]
[420659551,1776438645409,-500.0,9.808e-05,2]
[420659553,1776438645419,-2821.858241,9.841e-05,2]
[420659555,1776438645428,-290.6571589,9.875e-05,2]
[420659557,1776438645437,-155.0,9.899e-05,2]
[420659558,1776438645446,-150.281,9.944e-05,2]
[420659561,1776438645456,-946.84251642,9.974e-05,2]
[420659563,1776438645465,-152.0,9.978e-05,3]
[420659565,1776438645474,-208.62,9.984e-05,2]
[420659567,1776438645483,-416.0,9.991e-05,2]
[420659569,1776438645493,-3778.0,9.991e-05,2]
[420659571,1776438645502,-6028.0,9.991e-05,2]
[420659573,1776438645511,-157.86,0.0001,2]
[420659575,1776438645520,-392.94577322,0.0001,2]
[420659576,1776438645529,-882.41701685,0.0001,2]
[420659578,1776438645538,-851.42483723,0.0001,2]
[420659580,1776438645547,-772.74980416,0.0001,2]
[420659582,1776438645556,-547.76329984,0.0001,2]
[420659584,1776438645566,-1153.23465177,0.0001,2]
[420659586,1776438645575,-1281.416099,0.0001,2]
[420659588,1776438645584,-1344.63727375,0.0001,2]
[420659590,1776438645594,-151.0,0.0001,2]
[420659592,1776438645603,-153.80111446,0.0001,2]
[420659594,1776438645612,-151.0,0.0001,2]
[420659596,1776438645621,-151.0,0.0001,2]
[420659598,1776438645630,-151.0,0.0001,2]
[420659600,1776438645639,-151.0,0.0001,2]
[420659602,1776438645648,-151.0,0.0001,2]
[420659604,1776438645658,-200.0,0.0001,2]
[420659606,1776438645667,-151.0,0.0001,2]
[420659608,1776438645676,-151.0,0.0001,2]
[420659610,1776438645684,-151.0,0.0001,2]
[420659612,1776438645693,-151.0,0.0001,2]
[420659614,1776438645703,-151.0,0.0001,2]
[420659616,1776438645712,-151.0,0.0001,2]
[420659618,1776438645721,-151.0,0.0001,2]
[420659620,1776438645730,-151.0,0.0001,2]
[420659622,1776438645739,-151.0,0.0001,2]
[420659624,1776438645748,-500.0,0.0001,2]
[420659626,1776438645757,-500.0,0.0001,2]
[420659628,1776438645766,-500.0,0.0001,2]
[420659630,1776438645775,-500.0,0.0001,2]
[420659632,1776438645784,-500.0,0.0001,2]
[420659634,1776438645794,-500.0,0.0001,2]
[420659636,1776438645803,-500.0,0.0001,2]
[420659638,1776438645812,-644.44195718,0.0001,2]
[420659640,1776438645821,-946.84251642,0.0001,2]
[420659642,1776438645831,-452.27556448,0.0001,2]
[420659644,1776438645840,-452.27556448,0.0001,2]
[420659647,1776438645850,-150.0,0.0001002,2]
[420659649,1776438645859,-174.25,0.00010041,2]
[420659651,1776438645869,-3508.8644411,0.00010041,2]
[420659653,1776438645878,-253845.3080452,0.00010041,2]
[420659655,1776438645887,-10248.9220067,0.00010041,2]
[420659657,1776438645897,-195.55,0.00010046,2]
[420659659,1776438645906,-217.0,0.00010046,2]
[420659661,1776438645916,-273.0,0.00010046,2]
[420659663,1776438645925,-200.0,0.00010046,2]
[420659665,1776438645934,-204.027,0.00010046,2]
[420659666,1776438645943,-150.0,0.00010046,2]
[420659669,1776438645955,-150.294,0.00010046,2]
[420659671,1776438645964,-150.0,0.00010046,2]
[420659672,1776438645974,-150.0,0.00010046,2]
[420659674,1776438645983,-150.264,0.00010046,2]
[420659676,1776438645992,-150.0,0.00010046,2]
[420659678,1776438646002,-3528.0,0.00010046,2]
[420659681,1776438646016,-1049.659,0.00010046,2]
[420659683,1776438646025,-623.624,0.00010046,2]
[420659685,1776438646034,-200.0,0.00010137,3]
[420659687,1776438646043,-200.0,0.00010137,3]
[420659690,1776438646052,-200.49,0.00010137,3]
[420659693,1776438646062,-1377.42282659,0.00010145,2]
[420659695,1776438646071,-187.78006525,0.00010145,2]
[420659697,1776438646080,-178.98726897,0.00010145,2]
[420659699,1776438646089,-2000.0,0.00010274,2]
[420659701,1776438646098,-603254.34678032,0.000103,2]
[420659971,1776438648690,-151.0,9.1e-05,2]
[420659974,1776438648700,-151.0,0.0001,2]
[420659976,1776438648709,-151.0,0.0001,2]
[420659978,1776438648718,-215363.7938281,0.000103,2]
[420659980,1776438648727,-151.0,0.000103,2]
[420659982,1776438648736,-151.0,0.000103,2]
[420659984,1776438648745,-1657.0,0.000103,3]
[420659986,1776438648754,-401.276731,0.000103,2]
[420659987,1776438648766,-401.276731,0.000103,2]
[420659988,1776438648775,-401.276731,0.000103,2]
[420659989,1776438648784,-401.276731,0.000103,2]
[420659990,1776438648793,-151.0,0.000103,2]
[420659991,1776438648802,-151.0,0.000103,2]
[420659992,1776438648811,-151.0,0.000103,2]
[420659993,1776438648820,-306.1179,0.000103,2]
[420659994,1776438648829,-306.1179,0.000103,2]
[420659995,1776438648839,-306.1179,0.000103,2]
[420659996,1776438648848,-306.1179,0.000103,2]
[420659997,1776438648857,-5101.840582,0.000103,2]
[420659998,1776438648867,-5101.840582,0.000103,2]
[420659999,1776438648876,-5101.840582,0.000103,2]
[420660000,1776438648885,-5101.840582,0.000103,2]
[420660001,1776438648894,-151.0,0.000103,2]
[420660002,1776438648904,-151.0,0.000103,2]
[420660003,1776438648913,-151.0,0.000103,2]
[420660004,1776438648922,-1600.0,0.00010301,2]
[420660005,1776438648931,-150.0,0.0001032,2]
[420660006,1776438648940,-418.0,0.00010334,3]
[420660007,1776438648950,-152.0,0.00010405,4]
[420660008,1776438648960,-155.0,0.00010456,3]
[420660009,1776438648969,-150.1566667,0.00010476,2]
[420660010,1776438648979,-2033.31950414,0.00010482,2]
[420660011,1776438648988,-238.20002453,0.00010482,2]
[420660012,1776438648998,-5531.0,0.000105,5]
[420660013,1776438649007,-195.55,0.00010502,2]
[420660014,1776438649016,-3254.0,0.00010511,2]
[420660015,1776438649026,-3622.0,0.000106,2]
[420660016,1776438649035,-168.74,0.00010611,2]
[420660018,1776438649044,-150.0,0.0001062,2]
[420660019,1776438649054,-2487.0,0.00010644,2]
[420660020,1776438649063,-150.0,0.00010685,2]
[420660021,1776438649072,-150.0,0.00010685,2]
[420660022,1776438649081,-150.0,0.00010685,2]
[420660023,1776438649091,-182.39356719,0.00010685,2]
[420660024,1776438649100,-500.0,0.00010685,2]
[420660025,1776438649110,-500.0,0.00010685,2]
[420660026,1776438649119,-599.19493516,0.00010685,2]
[420660027,1776438649129,-500.0,0.00010685,2]
[420660028,1776438649139,-500.0,0.00010685,2]
[420660029,1776438649148,-500.0,0.00010685,2]
[420660030,1776438649157,-386.36910898,0.00010685,2]
[420660031,1776438649166,-500.0,0.00010685,2]
[420660032,1776438649175,-500.0,0.00010685,2]
[420660033,1776438649184,-500.0,0.00010685,2]
[420660034,1776438649194,-500.0,0.00010685,2]
[420660035,1776438649204,-449.09798279,0.00010685,2]
[420660036,1776438649213,-500.0,0.00010685,2]
[420660037,1776438649223,-500.0,0.00010685,2]
[420660038,1776438649233,-500.0,0.00010685,2]
[420660039,1776438649242,-500.0,0.00010685,2]
[420660041,1776438649251,-500.0,0.00010685,2]
[420660043,1776438649260,-500.0,0.00010685,2]
[420660045,1776438649269,-500.0,0.00010685,2]
[420660047,1776438649278,-500.0,0.00010685,2]
[420660048,1776438649287,-217.47375693,0.00010685,2]
[420660049,1776438649297,-500.0,0.00010685,2]
[420660050,1776438649306,-500.0,0.00010685,2]
[420660051,1776438649315,-500.0,0.00010685,2]
[420660052,1776438649325,-500.0,0.00010685,2]
[420660053,1776438649334,-170.67182518,0.00010685,2]
[420660054,1776438649344,-150.0,0.00010685,2]
[420660055,1776438649354,-150.0,0.00010685,2]
[420660056,1776438649364,-150.0,0.00010685,2]
[420660057,1776438649373,-150.0,0.00010685,2]
[420660058,1776438649382,-275.69367728,0.00010685,2]
[420660059,1776438649392,-500.0,0.00010685,2]
[420660061,1776438649402,-500.0,0.00010685,2]
[420660063,1776438649411,-365.66062983,0.00010685,2]
[420660064,1776438649421,-150.0,0.00010685,2]
[420660065,1776438649430,-500.0,0.00010685,2]
[420660066,1776438649439,-500.0,0.00010685,2]
[420660067,1776438649449,-500.0,0.00010685,2]
[420660068,1776438649458,-500.0,0.00010685,2]
[420660069,1776438649467,-500.0,0.00010685,2]
[420660070,1776438649476,-500.0,0.00010685,2]
[420660072,1776438649485,-500.0,0.00010685,2]
[420660074,1776438649494,-500.0,0.00010685,2]
[420660076,1776438649503,-500.0,0.00010685,2]
[420660077,1776438649512,-500.0,0.00010685,2]
[420660079,1776438649521,-500.0,0.00010685,2]
[420660081,1776438649531,-500.0,0.00010685,2]
[420660082,1776438649540,-500.0,0.00010685,2]
[420660083,1776438649549,-500.0,0.00010685,2]
[420660084,1776438649558,-500.0,0.00010685,2]
[420660085,1776438649567,-500.0,0.00010685,2]
[420660086,1776438649576,-500.0,0.00010685,2]
[420660087,1776438649585,-500.0,0.00010685,2]
[420660088,1776438649594,-500.0,0.00010685,2]
[420660089,1776438649604,-500.0,0.00010685,2]
[420660090,1776438649613,-568.74439521,0.00010685,2]
[420660091,1776438649622,-432.63844244,0.00010685,2]
[420660092,1776438649631,-500.0,0.00010685,2]
[420660093,1776438649640,-150.0,0.00010685,2]
[420660094,1776438649649,-500.0,0.00010685,2]
[420660095,1776438649659,-150.0,0.00010685,2]
[420660096,1776438649668,-500.0,0.00010685,2]
[420660097,1776438649677,-500.0,0.00010685,2]
[420660098,1776438649687,-500.0,0.00010685,2]
[420660099,1776438649696,-500.0,0.00010685,2]
[420660100,1776438649705,-500.0,0.00010685,2]
[420660101,1776438649714,-500.0,0.00010685,2]
[420660102,1776438649723,-500.0,0.00010685,2]
[420660103,1776438649732,-500.0,0.00010685,2]
[420660104,1776438649742,-500.0,0.00010685,2]
[420660106,1776438649751,-500.0,0.00010685,2]
[420660108,1776438649761,-409.62359561,0.00010685,2]
[420660110,1776438649770,-1428.38747117,0.00010693,2]
[420660112,1776438649779,-194.72792766,0.00010693,2]
[420660114,1776438649789,-500.0,0.00010693,2]
[420660116,1776438649799,-6451.0,0.00010737,2]
[420660118,1776438649809,-155.0,0.00010799,2]
[420660120,1776438649820,-152.0,0.00010832,5]
[420660123,1776438649829,-7985.0,0.00010857,2]
[420660124,1776438649839,-290.6571589,0.00010862,2]
[420660126,1776438649849,-247.752,0.00010871,2]
[420660128,1776438649858,-3184.9305402,0.00010893,2]
[420660130,1776438649868,-1713.0,0.000109,5]
[420660132,1776438649878,-2210.0,0.000109,5]
[420660134,1776438649887,-150.0,0.0001092,2]
[420660136,1776438649896,-269.19,0.00010925,2]
[420660138,1776438649908,-239.0,0.00010958,2]
[420660140,1776438649917,-307.0,0.00010958,2]
[420660141,1776438649926,-2000.0,0.00010959,2]
[420660142,1776438649937,-200.0,0.00010959,2]
[420660143,1776438649947,-500.0,0.00010959,2]
[420660144,1776438649957,-150.0,0.00010959,2]
[420660145,1776438649967,-151.0,0.00010959,2]
[420660146,1776438649976,-151.0,0.00010959,2]
[420660147,1776438649985,-151.0,0.00010959,2]
[420660148,1776438649995,-151.0,0.00010959,2]
[420660149,1776438650003,-151.0,0.00010959,2]
[420660150,1776438650013,-151.0,0.00010959,2]
[420660151,1776438650022,-151.0,0.00010959,2]
[420660152,1776438650031,-151.0,0.00010959,2]
[420660153,1776438650040,-195.55,0.00010959,2]
[420660154,1776438650049,-150.0,0.00010959,2]
[420660155,1776438650059,-500.0,0.00010967,2]
[420660156,1776438650068,-150.0,0.00010981,2]
[420660157,1776438650077,-8547.0,0.00010986,2]
[420660158,1776438650087,-292.82,0.00010989,2]
[420660160,1776438650096,-7455.0,0.00011062,2]
[420660162,1776438650106,-418.0,0.00011063,3]
[420660164,1776438650115,-161.28,0.00011065,2]
[420660165,1776438650125,-1271.82332058,0.00011099,2]
[420660167,1776438650134,-1271.82332053,0.00011099,2]
[420660169,1776438650144,-1271.82332053,0.00011099,2]
[420660171,1776438650154,-1271.82332053,0.00011099,2]
[420660173,1776438650164,-1271.82332053,0.00011099,2]
[420660175,1776438650174,-1271.82332053,0.00011099,2]
[420660177,1776438650184,-1271.82332053,0.00011099,2]
[420660179,1776438650194,-1271.82332053,0.00011099,2]
[420660180,1776438650203,-1271.82332053,0.00011099,2]
[420660181,1776438650212,-1271.82332053,0.00011099,2]
[420660182,1776438650222,-5688.0,0.00011111,2]
[420660183,1776438650231,-174.25,0.00011193,2]
[420660184,1776438650240,-3508.8644411,0.00011193,2]
[420660185,1776438650249,-300.0,0.00011194,2]
[420660186,1776438650260,-253845.3080452,0.00011195,2]
[420660187,1776438650269,-10248.9220067,0.00011195,2]
[420660188,1776438650279,-2030.0,0.00011203,2]
[420660189,1776438650288,-150.0,0.0001122,2]
[420660190,1776438650297,-155.0,0.00011225,3]
[420660191,1776438650307,-1600.0,0.00011238,2]
[420660192,1776438650316,-284.54331194,0.00011241,2]
[420660193,1776438650326,-201.93286099,0.00011241,2]
[420660194,1776438650335,-500.0,0.00011241,2]
[420660195,1776438650344,-152.0,0.0001126,6]
[420660196,1776438650353,-152.44,0.00011263,2]
[420660197,1776438650362,-2000.0,0.00011301,2]
[420660198,1776438650372,-710.6540615,0.00011315,2]
[420660199,1776438650381,-7293.83681339,0.00011347,2]
[420660200,1776438650390,-5411.58022302,0.00011349,2]
[420660201,1776438650399,-6478.0,0.00011351,2]
[420660202,1776438650409,-2087.63328514,0.000114,2]
[420660203,1776438650418,-500.0,0.000114,4]
[420660204,1776438650428,-195.55,0.00011416,2]
[420660205,1776438650437,-1116.0,0.00011443,2]
[420660206,1776438650446,-4444.0,0.00011444,2]
[420660207,1776438650457,-500.0,0.00011444,2]
[420660208,1776438650466,-500.0,0.00011444,2]
[420660209,1776438650475,-500.0,0.00011444,2]
[420660210,1776438650484,-500.0,0.00011444,2]
[420660211,1776438650494,-500.0,0.00011444,2]
[420660212,1776438650503,-500.0,0.00011444,2]
[420660213,1776438650512,-500.0,0.00011444,2]
[420660214,1776438650521,-500.0,0.00011444,2]
[420660215,1776438650530,-500.0,0.00011444,2]
[420660216,1776438650539,-500.0,0.00011444,2]
[420660217,1776438650548,-500.0,0.00011444,2]
[420660218,1776438650557,-500.0,0.00011444,2]
[420660219,1776438650566,-500.0,0.00011444,2]
[420660220,1776438650575,-500.0,0.00011444,2]
[420660221,1776438650585,-500.0,0.00011444,2]
[420660222,1776438650594,-500.0,0.00011444,2]
[420660223,1776438650603,-500.0,0.00011444,2]
[420660224,1776438650612,-500.0,0.00011444,2]
[420660225,1776438650621,-500.0,0.00011444,2]
[420660226,1776438650630,-500.0,0.00011444,2]
[420660227,1776438650639,-500.0,0.00011444,2]
[420660228,1776438650648,-500.0,0.00011444,2]
[420660229,1776438650659,-500.0,0.00011444,2]
[420660230,1776438650668,-500.0,0.00011444,2]
[420660231,1776438650677,-500.0,0.00011444,2]
[420660232,1776438650686,-500.0,0.00011444,2]
[420660233,1776438650695,-377.0,0.00011499,2]
[420660234,1776438650705,-500.0,0.000115,4]
[420660235,1776438650715,-5572.7,0.00011507,2]
[420660236,1776438650724,-250.96,0.00011507,2]
[420660237,1776438650734,-350.0,0.00011509,2]
[420660238,1776438650743,-5874.0,0.00011512,2]
[420660239,1776438650752,-500.0,0.00011515,2]
[420660240,1776438650761,-150.0,0.0001152,2]
[420660241,1776438650771,-3468.0,0.00011588,2]
[420660242,1776438650780,-350.0,0.00011595,2]
[420660243,1776438650789,-500.0,0.000116,4]
[420660244,1776438650798,-11601.9,0.00011626,2]
[420660245,1776438650807,-3615.97,0.00011626,2]
[420660246,1776438650816,-17333.34,0.00011626,2]
[420660247,1776438650825,-37232.61,0.00011626,2]
[420660248,1776438650834,-2946.27,0.00011626,2]
[420660249,1776438650843,-2487.0,0.00011637,2]
[420660250,1776438650852,-4286.0,0.00011642,2]